[Event "Israel-ch Youth U8-18 2024"]
[Site "Kfar Saba"]
[Date "2024.04.18"]
[Round "4.5"]
[White "Duchan, Yoav"]
[Black "Abitbul, Matan"]
[Result "0-1"]
[ECO "B23"]
[WhiteElo "1980"]
[BlackElo "1916"]
[Annotator "TA"]
[PlyCount "98"]
[EventDate "2024.04.10"]
[EventType "swiss"]
[EventCountry "ISR"]
[SourceTitle "playchess.com"]
[Source "ChessBase"]
[SourceQuality "1"]
[TimeControl "5400+30"]

{[%evp 10,98,-40,-42,-44,-42,-41,-56,-45,-53,-43,-50,-50,-105,-126,-191,-122,-129,-128,-190,-202,-167,-132,-124,-132,-131,-86,-116,-97,-91,-100,-116,-118,-97,-116,-128,-127,-119,-119,-119,-96,-92,-92,-138,-104,-277,-270,-284,-284,-250,-254,-387,-292,-292,-279,-420,-391,-426,-239,-812,-864,-876,-884,-687,-245,-1335,-865,-985,-1367,-1420,-1384,-1366,-1191,-1307,-1129,-1563,-1563,-1448,-983,-1181,-779,-2001,-1931,-1928,-1756,-1573,-1354,-29979,-29980,-29979,-29981]} 1. g3 {[%emt 0:00:01]} d5 {[%emt 0:00:05]} 2. Bg2 {[%emt 0:00:03]} Nf6 {[%emt 0:00:02]} 3. d3 {[%emt 0:00:05]} c5 {[%emt 0:00:13]} 4. Bg5 {[%emt 0:00:18]} e6 {[%emt 0:00:54]} 5. Nc3 {[%emt 0:00:06]} Be7 {[%emt 0:02:20]} 6. e4 {[%emt 0:00:25]} d4 {[%emt 0:01:27]} 7. Nce2 {[%emt 0:00:14]} Nc6 {[%emt 0:01:40]} 8. Bxf6 {[%emt 0:00:54]} Bxf6 {[%emt 0:00:47] Black is slightly better.} 9. f4 {[%emt 0:00:06]} e5 {[%emt 0:06:06]} 10. Nf3 {[%emt 0:00:05]} h5 {[%emt 0:01:54]} 11. f5 {[%emt 0:02:05]} (11. h3 $15) 11... g6 $17 {[%emt 0:05:09]} 12. Qd2 {[%emt 0:03:40]} (12. fxg6 $17 {is a better defense.} fxg6 13. Qd2) 12... Bg7 {[%emt 0:04:13]} (12... gxf5 $19 13. exf5 Ne7 (13... Bxf5 14. O-O $17)) 13. fxg6 {[%emt 0:05:56]} fxg6 {[%emt 0:00:22] ...Bh6 is the strong threat.} 14. h4 {[%emt 0:00:20]} (14. O-O $17) 14... Bh6 $19 {[%emt 0:01:06]} 15. Ng5 {[%emt 0:00:25]} Bxg5 {[%emt 0:00:11]} 16. Qxg5 {[%emt 0:05:03]} Qxg5 {[%emt 0:00:12]} 17. hxg5 {[%emt 0:00:04]} Be6 {[%emt 0:00:43]} 18. Rf1 {[%emt 0:04:29]} Rf8 {[%emt 0:00:25]} 19. Rxf8+ {[%emt 0:01:29]} Kxf8 {[%emt 0:00:02]} 20. Kd2 {[%emt 0:01:42]} Ke7 {[%emt 0:00:20]} 21. Rf1 {[%emt 0:02:36]} Rf8 {[%emt 0:00:12]} 22. a3 {[%emt 0:01:02]} Rxf1 {[%emt 0:01:39]} 23. Bxf1 $17 {[%emt 0:00:04][%mdl 4096] Endgame. KBN-KBN} Nd8 {[%emt 0:00:36]} 24. Ng1 {[%emt 0:00:05]} Nf7 {[%emt 0:16:44]} 25. Nf3 {[%emt 0:00:12] [#]} Kf8 $1 {[%emt 0:00:16]} 26. Be2 {[%emt 0:00:46]} ({White should try} 26. c4) 26... Kg7 {[%emt 0:05:47]} 27. c4 $2 {[%emt 0:01:43] Loses the game.} (27. Bf1 $17) 27... Bg4 $19 {[%emt 0:01:39]} 28. Nh2 {[%emt 0:00:49]} Bxe2 {[%emt 0:00:21]} ({Not} 28... Nxg5 29. Bxg4 hxg4 30. Nxg4 $16) 29. Kxe2 {[%emt 0:00:08]} Nxg5 {[%emt 0:00:09] KN-KN} 30. b4 {[%emt 0:00:15]} (30. Kf1 $142) 30... Ne6 {[%emt 0:26:41]} 31. Nf3 {[%emt 0:00:41]} Kf6 {[%emt 0:00:10]} 32. Nh4 {[%emt 0:00:30]} (32. b5 $142) 32... b6 {[%emt 0:03:02]} 33. b5 {[%emt 0:01:37]} Ng7 {[%emt 0:01:40]} (33... g5 $142 34. Nf5 Ng7) 34. Kf3 $2 {[%emt 0:01:47]} (34. Nf3) 34... g5 {[%emt 0:13:37]} 35. Ng2 {[%emt 0:00:04]} Ne6 {[%emt 0:00:08]} 36. Kf2 {[%emt 0:02:53]} Nf8 {[%emt 0:01:45]} 37. Kg1 $2 {[%emt 0:03:37]} (37. g4) 37... Ng6 {[%emt 0:02:07] [#] Strongly threatening ...g4.} 38. Kh2 {[%emt 0:02:14]} g4 {[%emt 0:02:10]} 39. Nh4 {[%emt 0:00:33]} Kg5 {[%emt 0:00:23]} 40. Nf5 {[%emt 0:00:25]} h4 {[%emt 0:00:15]} 41. Nd6 {[%emt 0:00:47]} hxg3+ {[%emt 0:00:23]} 42. Kxg3 {[%emt 0:00:03]} Nf4 {[%emt 0:00:28]} 43. Nf7+ {[%emt 0:02:56]} Kf6 {[%emt 0:00:11]} 44. Nd6 {[%emt 0:00:37]} Nxd3 {[%emt 0:00:22]} 45. Kxg4 {[%emt 0:00:37]} Nb2 {[%emt 0:00:23]} 46. Kf3 {[%emt 0:00:55]} Ke6 {[%emt 0:00:37]} 47. Nc8 {[%emt 0:00:18]} Nxc4 {[%emt 0:00:29] And now ...Nd2+ would win.} 48. a4 {[%emt 0:00:27]} Kd7 {[%emt 0:00:29]} 49. Nxa7 {[%emt 0:00:15]} Na5 {[%emt 0:00:20] Weighted Error Value: White=0.74/Black=0.20 (precise) .  Loses game:     	White=1     	---        Mistake:       	White=7     	Black=2      Inaccurate:     	White=1     	Black=1      OK:         	White=5     	Black=9      Best:        	White=3     	Black=1      Strong:       	---       	Black=1} 0-1

[Event "Israel-ch Youth U8-18 2024"]
[Site "Kfar Saba"]
[Date "2024.04.18"]
[Round "4.6"]
[White "Kirsch, Yahel David"]
[Black "Medovoy, Yaniv"]
[Result "0-1"]
[ECO "C45"]
[WhiteElo "1961"]
[BlackElo "2009"]
[Annotator "TA"]
[PlyCount "78"]
[EventDate "2024.04.10"]
[EventType "swiss"]
[EventCountry "ISR"]
[SourceTitle "playchess.com"]
[Source "ChessBase"]
[SourceQuality "1"]
[TimeControl "5400+30"]

{[%evp 9,78,-8,-17,-48,-56,-64,-25,-21,0,0,0,-15,-16,-51,-20,-48,-39,-37,-47,-137,-136,-267,-264,-278,-272,-488,-481,-595,-597,-629,-624,-882,-894,-870,-860,-902,-882,-889,-892,-945,-939,-1049,-951,-966,-931,-1030,-1025,-1187,-1186,-1236,-1168,-1126,-1088,-1278,-1256,-1650,-1217,-1279,-1268,-1354,-1285,-6032,-2294,-2115,-2232,-2420,-2310,-4212,-3057,-29987,-29985]} 1. e4 {[%emt 0:00:04]} e5 {[%emt 0:00:43]} 2. Nf3 {[%emt 0:00:24]} Nc6 {[%emt 0:00:07]} 3. d4 {[%emt 0:00:39]} exd4 {[%emt 0:00:19]} 4. Nxd4 {[%emt 0:00:10]} Bb4+ {[%emt 0:00:05]} 5. Bd2 {[%emt 0:02:02]} Qe7 {[%emt 0:02:21]} 6. Nxc6 {[%emt 0:04:44]} Qxe4+ {[%emt 0:01:59]} 7. Be2 {[%emt 0:03:28]} Bxd2+ {[%emt 0:02:02]} 8. Qxd2 {[%emt 0:00:29] Black has an edge.} Qxc6 {[%emt 0:00:26]} 9. Nc3 {[%emt 0:00:38]} Nf6 {[%emt 0:01:32][%cal Oe8g8]} 10. O-O-O {[%emt 0:00:21] Hoping for Bf3.} O-O {[%emt 0:00:22][%cal Od7d6]} 11. Bf3 {[%emt 0:05:42]} Qb6 {[%emt 0:01:45]} 12. g4 {[%emt 0:01:09]} c6 $1 {[%emt 0:07:08]} 13. g5 {[%emt 0:14:07]} Ne8 {[%emt 0:00:16]} 14. Ne4 {[%emt 0:01:59] Black keeps a firm grip on the game.} ({White should play} 14. h4 $15) 14... d5 $17 {[%emt 0:01:20]} 15. Nf6+ {[%emt 0:01:25]} (15. Ng3 $17 {might work better.}) 15... gxf6 $19 {[%emt 0:00:44]} 16. gxf6 {[%emt 0:00:12] [#] Black must now prevent Rhg1+.} Bf5 {[%emt 0:00:15]} 17. Qg5+ $2 {[%emt 0:07:30]} (17. Rhg1+ Kh8 (17... Bg6 $2 18. h4 $19) 18. Qh6) 17... Bg6 {[%emt 0:00:01]} 18. h4 {[%emt 0:00:39]} Qxf2 {[%emt 0:00:13]} 19. Be4 {[%emt 0:04:48]} Qxf6 {[%emt 0:01:14]} 20. Qg1 {[%emt 0:01:51]} Qf4+ {[%emt 0:00:31]} 21. Kb1 {[%emt 0:00:34]} Qxe4 {[%emt 0:00:07]} 22. h5 {[%emt 0:00:04]} Qxc2+ {[%emt 0:00:51]} 23. Ka1 {[%emt 0:00:01] [#]} Ng7 $1 {[%emt 0:01:29]} 24. hxg6 {[%emt 0:00:34]} (24. Rh2 Qf5) 24... fxg6 {[%emt 0:00:07]} 25. Qg5 {[%emt 0:01:59]} Rf5 {[%emt 0:00:48]} 26. Qe7 {[%emt 0:01:17]} Raf8 {[%emt 0:03:44]} 27. Rhe1 {[%emt 0:01:24]} R5f7 {[%emt 0:01:39]} 28. Qh4 {[%emt 0:00:37]} Nf5 {[%emt 0:00:12]} 29. Qg5 {[%emt 0:01:01]} Nd6 {[%emt 0:00:34]} 30. Rc1 {[%emt 0:01:34]} Qf5 {[%emt 0:00:26]} 31. Qh6 {[%emt 0:00:19]} Nc4 {[%emt 0:00:47][%cal Oc4b2] Strongly threatening ...Nxb2!} 32. Rb1 {[%emt 0:00:45]} Qf4 {[%emt 0:00:32]} 33. Qh3 {[%emt 0:00:36]} a5 {[%emt 0:00:43]} 34. Rh1 {[%emt 0:00:32]} Qf5 {[%emt 0:00:43] Threatens to win with ...Nd2.} 35. Qh4 {[%emt 0:00:44]} Ne3 {[%emt 0:00:11][%cal Re3c2]} 36. a3 {[%emt 0:00:15]} b5 {[%emt 0:00:15]} 37. Ka2 {[%emt 0:01:35]} c5 {[%emt 0:00:24] ...b4 is the strong threat.} 38. Rbg1 {[%emt 0:00:55]} d4 {[%emt 0:00:32]} 39. Rh2 {[%emt 0:02:36]} a4 {[%emt 0:00:39] Weighted Error Value: White=0.77/Black=0.13 (very precise) .  Mistake:       	White=3     	---        Inaccurate:     	White=3     	Black=2      OK:         	White=1     	Black=6      Best:        	---       	Black=4      Strong:       	---       	Black=1} 0-1

[Event "Israel-ch Youth U8-18 2024"]
[Site "Kfar Saba"]
[Date "2024.04.18"]
[Round "4.7"]
[White "Afek, Itay"]
[Black "Berlad, Asaf"]
[Result "1-0"]
[ECO "B25"]
[WhiteElo "1816"]
[BlackElo "1900"]
[Annotator "NA COMBH"]
[PlyCount "61"]
[EventDate "2024.04.10"]
[EventType "swiss"]
[EventCountry "ISR"]
[SourceTitle "playchess.com"]
[Source "ChessBase"]
[SourceQuality "1"]
[TimeControl "5400+30"]

1. Nf3 {[%emt 0:00:04]} Nf6 {[%emt 0:00:25]} 2. g3 {[%emt 0:00:04]} g6 {[%emt 0:01:00]} 3. Bg2 {[%emt 0:00:03]} Bg7 {[%emt 0:00:08]} 4. O-O {[%emt 0:00:06]} O-O {[%emt 0:00:06]} 5. d3 {[%emt 0:00:12]} d6 {[%emt 0:00:38]} 6. e4 {[%emt 0:00:20]} c5 {[%emt 0:00:49]} 7. Nc3 {[%emt 0:01:10]} Nc6 {[%emt 0:00:25]} 8. Re1 {[%emt 0:01:45] is now more promising than 8.h3.} Rb8 {[%emt 0:02:45] B25: Closed Sicilian: 3 g3, lines without early Be3.} 9. h3 {[%emt 0:03:58]} a6 {[%emt 0:06:32]} 10. Be3 {[%emt 0:01:44]} Qc7 $146 {[%emt 0:06:11]} ({Predecessor:} 10... b5 11. e5 Nd7 12. exd6 exd6 13. Rb1 Bb7 14. Qd2 Nde5 15. Nxe5 Bxe5 16. Bh6 Re8 {½-½ Schmuck,K-Bentz,C GER-chT U20 Bochum 1990 (7)}) 11. Qd2 {[%emt 0:01:16]} Re8 {[%emt 0:00:16]} 12. Bh6 {[%emt 0:01:41]} Bh8 {[%emt 0:00:07]} 13. Ng5 {[%emt 0:07:40]} Bg7 {[%emt 0:05:01]} 14. Bxg7 {[%emt 0:00:46]} Kxg7 {[%emt 0:00:06]} 15. f4 {[%emt 0:02:21]} e6 {[%emt 0:01:30]} 16. g4 {[%emt 0:03:22]} Bd7 {[%emt 0:00:43]} 17. Ne2 {[%emt 0:03:30]} h5 {[%emt 0:05:45]} 18. f5 {[%emt 0:08:22]} hxg4 {[%emt 0:02:38]} 19. fxg6 {[%emt 0:04:06]} fxg6 {[%emt 0:00:35]} 20. Rf1 {[%emt 0:02:57]} Rf8 {[%emt 0:10:38]} 21. Rf2 $17 {[%emt 0:06:37]} e5 {[%emt 0:00:53]} 22. h4 {[%emt 0:02:38]} (22. Raf1 $17 {keeps fighting.}) 22... Qd8 {[%emt 0:14:44]} 23. Raf1 {[%emt 0:01:31]} Qe7 {[%emt 0:00:11]} 24. Ng3 {[%emt 0:02:13]} Nh5 {[%emt 0:02:12]} 25. Nxh5+ {[%emt 0:01:08]} gxh5 {[%emt 0:00:08]} 26. Rf7+ {[%emt 0:00:43]} Rxf7 {[%emt 0:00:08]} 27. Rxf7+ {[%emt 0:00:32]} Qxf7 {[%emt 0:00:07]} 28. Nxf7 {[%emt 0:00:03]} Kxf7 {[%emt 0:00:07]} 29. Qh6 {[%emt 0:00:28]} Ke7 {[%emt 0:04:54]} 30. Qg5+ {[%emt 0:00:37]} Ke8 {[%emt 0:01:17]} 31. Qf6 {[%emt 0:01:10]} 1-0

[Event "Israel-ch Youth U8-18 2024"]
[Site "Kfar Saba"]
[Date "2024.04.18"]
[Round "4.8"]
[White "Azoulay, Yehonatan"]
[Black "Manyevich, Rom"]
[Result "0-1"]
[ECO "B12"]
[WhiteElo "1987"]
[BlackElo "1927"]
[Annotator "TA"]
[PlyCount "118"]
[EventDate "2024.04.10"]
[EventType "swiss"]
[EventCountry "ISR"]
[SourceTitle "playchess.com"]
[Source "ChessBase"]
[SourceQuality "1"]
[TimeControl "5400+30"]

{[%evp 10,118,19,0,18,23,31,20,21,6,9,-55,0,-39,-35,-31,-26,-71,-67,-79,0,21,26,24,28,13,13,21,75,68,112,71,82,64,87,91,75,91,100,85,109,41,46,42,50,6,25,-32,0,-7,45,24,39,0,14,0,2,0,0,0,0,-46,-7,-28,-6,-88,0,-65,-29,-231,-201,-427,-416,-681,-370,-692,-635,-1037,-379,-387,-378,-355,-340,-310,-304,-1094,-1087,-5252,-5247,-29989,-5389,-5691,-2151,-2903,-2903,-29977,-29978,-29978,-29979,-29979,-29980,-29980,-29981,-29981,-29982,-29982,-29983,-29983,-29984,-29983,-29984]} 1. e4 {[%emt 0:00:02]} c6 {[%emt 0:00:05]} 2. d4 {[%emt 0:00:01]} d5 {[%emt 0:00:07]} 3. e5 {[%emt 0:00:02]} Bf5 {[%emt 0:00:07]} 4. Nd2 {[%emt 0:00:04]} e6 {[%emt 0:00:04]} 5. Nb3 {[%emt 0:00:03]} Nd7 {[%emt 0:00:08]} 6. Nf3 {[%emt 0:00:05]} Ne7 {[%emt 0:00:17]} 7. Be2 {[%emt 0:00:39]} h6 {[%emt 0:00:08]} 8. O-O {[%emt 0:00:06]} g5 {[%emt 0:00:09] The position is equal.} 9. Ne1 {[%emt 0:18:19]} Qc7 {[%emt 0:01:47]} 10. g4 {[%emt 0:14:44]} (10. Nd3 $11) 10... Be4 {[%emt 0:04:40]} (10... Bh7 $15) 11. f3 {[%emt 0:01:38]} Bg6 {[%emt 0:00:17]} 12. f4 {[%emt 0:01:11]} c5 {[%emt 0:08:04]} 13. dxc5 {[%emt 0:20:10]} gxf4 {[%emt 0:16:35] Black is more active.} 14. Nd3 {[%emt 0:03:33]} Bxd3 {[%emt 0:06:48]} (14... Nxe5 $6 15. Nxe5 (15. Nxf4 Be4 $15) 15... Qxe5 16. c3 $11 (16. Rxf4 h5 $17) (16. Bxf4 Qxb2 17. Bd3 Qg7 $15)) ({Better is} 14... h5 $17 {Strongly threatening ...hxg4.} 15. gxh5 Be4 16. Bxf4 O-O-O) 15. cxd3 $11 {[%emt 0:01:01][%cal Bc2d3,Bd3d4][%mdl 32]} f3 {[%emt 0:06:38]} 16. Bxf3 {[%emt 0:00:31] And now d4 would win.} Nxe5 {[%emt 0:00:35]} 17. d4 {[%emt 0:06:11]} Nxf3+ {[%emt 0:00:12]} 18. Qxf3 {[%emt 0:00:07]} Ng6 {[%emt 0:00:37]} (18... Nc6 $11 {remains equal.}) 19. Bd2 {[%emt 0:01:19]} Bg7 {[%emt 0:01:15]} 20. Rae1 {[%emt 0:00:31]} Qe7 {[%emt 0:05:33]} 21. Kh1 {[%emt 0:13:55][%cal Oc5c6]} O-O {[%emt 0:00:33]} 22. Rg1 {[%emt 0:05:14]} Qh4 {[%emt 0:07:37]} 23. Rg3 {[%emt 0:01:54]} Qf6 {[%emt 0:01:00]} 24. Qg2 {[%emt 0:05:58]} Qd8 {[%emt 0:17:59]} 25. g5 {[%emt 0:00:43]} (25. Rh3 $16) 25... h5 $1 $14 {[%emt 0:00:15]} 26. Rh3 {[%emt 0:02:10]} h4 {[%emt 0:00:40]} 27. Qg4 {[%emt 0:02:00]} a5 {[%emt 0:01:39]} 28. Re2 {[%emt 0:00:56]} (28. Bc3 $11) 28... a4 {[%emt 0:00:42]} 29. Nc1 {[%emt 0:00:03][%cal Bb3c1,Bc1d3,Bd3f4][%mdl 32]} Qd7 {[%emt 0:01:52]} (29... b6 $11) 30. Nd3 {[%emt 0:01:35]} Qb5 {[%emt 0:01:27]} 31. Nf4 {[%emt 0:00:08] Black must now prevent Nxg6.} Qxb2 {[%emt 0:01:45] [#] aiming for ...Qa1+.} 32. Nxg6 {[%emt 0:00:57] Intending Ne7+ and mate.} Qb1+ $1 {[%emt 0:00:35]} 33. Re1 {[%emt 0:00:29]} Qxg6 {[%emt 0:00:03]} 34. Qxh4 {[%emt 0:00:28]} a3 {[%emt 0:01:15]} 35. Bc3 {[%emt 0:00:37]} (35. Bf4 $11 {is superior.}) 35... Ra4 {[%emt 0:00:53][%cal Ob7b6]} 36. Rf3 {[%emt 0:00:26]} Rc4 {[%emt 0:02:53][%cal Oe6e5]} 37. Ba1 {[%emt 0:00:35]} (37. Qh3 $11) 37... Ra4 {[%emt 0:01:05]} ({Black should try} 37... Ra8 $17 {Hoping for ...Rc2.} 38. Rf2 e5) 38. Rh3 {[%emt 0:00:31]} (38. Bc3 $11) 38... Rc8 {[%emt 0:00:23] [#] ...Rxc5 would now be deadly.} (38... e5 $5 39. Rf3 exd4 $17) 39. Rb3 $2 {[%emt 0:00:26] This costs White the game.} (39. Qg3 $1 $11 {and White is okay.}) 39... Rxc5 $19 {[%emt 0:03:30]} 40. Rxb7 $2 {[%emt 0:00:31]} (40. Bc3 {was forced.}) 40... Rac4 {[%emt 0:01:39]} 41. Qf4 {[%emt 0:00:28]} (41. Rb3 $142 Rc8 42. Rxa3) 41... Rc8 {[%emt 0:01:54]} 42. Qe3 $2 {[%emt 0:00:37]} (42. Rb3 Bf8 43. Rh3) 42... Rc2 {[%emt 0:01:14]} 43. Rf1 {[%emt 0:00:24]} Qh5 {[%emt 0:00:55]} (43... Rxa2 {( -> ...Qc2)} 44. Bc3 Qc2) 44. Qf4 {[%emt 0:01:08]} Rf8 {[%emt 0:02:20]} (44... Rxa2 45. Rxf7 Qg6 46. Kg1 $19) 45. Rb3 {[%emt 0:00:00]} Qe2 {[%emt 0:00:37]} 46. Rg1 {[%emt 0:00:24] Prevents Qg2+.} Rxa2 {[%emt 0:00:27]} 47. Bc3 $2 {[%emt 0:00:24]} (47. Re3 Qh5 48. Qg3) 47... Qc2 {[%emt 0:00:30]} 48. Bb4 {[%emt 0:00:28]} Qxb3 {[%emt 0:01:18]} 49. Bxf8 {[%emt 0:00:03] White is weak on the light squares} Bxf8 {[%emt 0:01:45]} (49... Bxd4 $142 50. g6 f5 (50... Bxg1 51. Qxf7+ Kh8 52. Qh7#) 51. Qg3 Be5 (51... Qxg3 {leads to mate.} 52. Rxg3 Ra1+ 53. Kg2 Rg1+ 54. Kf3 Rxg3+ 55. hxg3 Kxf8 56. g4 a2 57. gxf5 a1=Q 58. fxe6 Qf1+ 59. Kg4 Be5 60. Kg5 Qf4+ 61. Kh5 Qf3+ 62. Kh6 Bf4+ 63. Kh7 Qh5#) 52. Qg2 Rxg2 (52... Kxf8 53. Rf1 Rxg2 54. Kxg2 a2 55. Re1 Kg7 56. Kf2 Qc2+ 57. Kf3 Bd4 58. Re2 Qd3+ 59. Re3 Qxe3+ 60. Kg2 Qe4+ 61. Kh3 Qg4#) 53. Rxg2 Qd1+ (53... Kxf8 {gets mated.} 54. Rf2 Qh3 55. Kg1 Bd4 56. g7+ Kg8 57. Kh1 a2 58. Rg2 a1=Q+ 59. Rg1 Qxg1#) (53... a2 54. Rxa2 Qxa2 55. Kg1 Bd4+ 56. Kh1 Qf2 57. Bh6 Qg1#) 54. Rg1 Qf3+ 55. Rg2 Bd4 (55... Kxf8 56. g7+ Kg8 57. Kg1 Bd4+ 58. Rf2 Qxf2+ 59. Kh1 Qg1#) (55... a2 56. Bc5 a1=Q+ 57. Bg1 Bd4 58. h4 Qxg1#) 56. h4 Qh3+ 57. Rh2 Qf1#) 50. Rf1 {[%emt 0:00:09]} Qb7 {[%emt 0:00:26]} 51. g6 {[%emt 0:01:02]} f5 {[%emt 0:00:34]} 52. Qe5 {[%emt 0:00:34]} Qa6 {[%emt 0:00:27][%cal Ra6f1] Black mates.} 53. Re1 {[%emt 0:00:23]} Qd6 {[%emt 0:00:46]} 54. g7 {[%emt 0:00:13]} Qxe5 {[%emt 0:00:52][%cal Re5e1]} 55. gxf8=Q+ Kxf8 {[%emt 0:00:04][%cal Re5e1]} 56. Rxe5 {[%emt 0:00:14]} Rb2 {[%emt 0:00:16]} 57. Rxe6 {[%emt 0:00:05]} a2 {[%emt 0:00:03]} 58. Rf6+ {[%emt 0:00:06]} Ke7 {[%emt 0:00:05][%cal Ra2a1]} 59. Ra6 {[%emt 0:00:08]} Rb1+ {[%emt 0:00:05] Weighted Error Value: White=0.87/Black=0.35.  Loses game:     	White=1     	---        Mistake:       	White=10    	Black=5      Inaccurate:     	White=7     	Black=4      OK:         	White=6     	Black=15     Best:        	White=3     	Black=1      Strong:       	---       	Black=2} 0-1

[Event "Israel-ch Youth U8-18 2024"]
[Site "Kfar Saba"]
[Date "2024.04.18"]
[Round "4.9"]
[White "Birka, Elia"]
[Black "Sternfeld, Tomer"]
[Result "0-1"]
[ECO "B30"]
[WhiteElo "1954"]
[BlackElo "1866"]
[Annotator "TA"]
[PlyCount "88"]
[EventDate "2024.04.10"]
[EventType "swiss"]
[EventCountry "ISR"]
[SourceTitle "playchess.com"]
[Source "ChessBase"]
[SourceQuality "1"]
[TimeControl "5400+30"]

{[%evp 16,88,33,37,33,18,37,43,31,35,35,15,36,0,0,0,0,0,0,0,0,-16,-22,-19,-15,-27,-10,-11,0,0,0,0,0,-4,0,0,0,0,0,0,0,0,0,0,0,0,0,0,0,0,0,0,0,0,0,0,0,0,0,-595,-594,-570,-561,-670,-669,-739,-712,-717,-718,-652,-609,-776,-771,-745,-721]} 1. e4 {[%emt 0:00:52]} c5 {[%emt 0:00:23]} 2. Nf3 {[%emt 0:00:19]} Nc6 {[%emt 0:00:07]} 3. Bb5 {[%emt 0:02:19]} e6 {[%emt 0:00:11]} 4. O-O {[%emt 0:00:11]} Nge7 {[%emt 0:00:11][%cal Bg8e7,Be7d5,Bd5b4][%mdl 32]} 5. Re1 {[%emt 0:00:12]} a6 {[%emt 0:00:16]} 6. Bf1 {[%emt 0:00:09]} d5 {[%emt 0:00:22]} 7. exd5 {[%emt 0:00:27]} Nxd5 {[%emt 0:00:10]} 8. d4 {[%emt 0:00:11]} cxd4 {[%emt 0:00:23]} 9. Nxd4 {[%emt 0:00:15]} Ndb4 {[%emt 0:00:11]} 10. Nxc6 {[%emt 0:09:22]} Qxd1 {[%emt 0:00:13]} 11. Rxd1 {[%emt 0:00:03][%csl Gc6][%cal Rd1d8] [#]} bxc6 {[%emt 0:00:11] White is slightly better.} 12. Na3 {[%emt 0:02:05]} a5 {[%emt 0:00:34]} 13. c3 {[%emt 0:04:17]} Nd5 {[%emt 0:00:23]} 14. Nc4 {[%emt 0:00:25]} f6 {[%emt 0:04:46] Prevents Ne5} 15. Be3 {[%emt 0:07:25]} e5 {[%emt 0:18:39]} 16. Nb6 {[%emt 0:01:41]} Nxb6 {[%emt 0:01:05]} 17. Bxb6 {[%emt 0:00:12]} Be6 {[%emt 0:00:56]} 18. g3 {[%emt 0:08:56]} Be7 {[%emt 0:09:26]} 19. Bg2 {[%emt 0:00:37]} Kf7 {[%emt 0:01:26]} 20. b3 {[%emt 0:06:48]} (20. Bxc6 $2 Ra6 21. Bxa5 Rxc6 $19) 20... g5 {[%emt 0:13:27]} 21. Be3 {[%emt 0:09:52]} (21. Bxc6 $2 {perishes.} Ra6 22. Bxa5 Rxc6 $19) 21... g4 {[%emt 0:16:02]} 22. Bxc6 {[%emt 0:04:37]} Rac8 {[%emt 0:00:50]} 23. Bd7 {[%emt 0:13:47]} Rxc3 {[%emt 0:03:02]} 24. Rac1 {[%emt 0:01:43]} Bb4 {[%emt 0:11:53]} (24... Rxc1 {simplifies} 25. Bxe6+ Kxe6 26. Rxc1 f5) 25. Rxc3 {[%emt 0:01:25]} Bxc3 {[%emt 0:00:02]} 26. Rd6 {[%emt 0:00:41]} Bxd7 {[%emt 0:00:18]} 27. Rxd7+ $11 {[%emt 0:00:02][%mdl 4096] Endgame. KRB-KRB} Ke6 {[%emt 0:00:11]} 28. Rc7 {[%emt 0:00:39]} Bb4 {[%emt 0:01:38]} 29. Kf1 {[%emt 0:03:59]} Kd6 {[%emt 0:02:28]} 30. Ra7 {[%emt 0:04:19]} Rc8 {[%emt 0:05:07]} 31. Bb6 {[%emt 0:02:44]} Rc1+ {[%emt 0:02:27]} 32. Kg2 {[%emt 0:00:06]} Rc2 {[%emt 0:01:59]} 33. Bxa5 {[%emt 0:03:50]} Bc5 {[%emt 0:01:31]} 34. Ra6+ {[%emt 0:00:07]} Ke7 {[%emt 0:01:19]} 35. Be1 {[%emt 0:04:53]} Rc1 {[%emt 0:02:05]} 36. Ba5 {[%emt 0:00:30] [#] Rc6 is the strong threat.} Rc2 {[%emt 0:00:25][%csl LRa2,LRf2]} 37. Rc6 $2 {[%emt 0:03:41][%mdl 8192]} (37. Be1 $11 {and White stays safe.}) 37... Rxf2+ $19 {[%emt 0:01:13] Black is clearly winning.} 38. Kg1 {[%emt 0:00:04][%cal Oa5b4]} Bd4 {[%emt 0:00:53] Strongly threatening ...Rc2+.} ({Inferior is} 38... Rxa2+ 39. Rxc5 Ra1+ 40. Kf2 $16) 39. Bb4+ {[%emt 0:01:24]} Kf7 {[%emt 0:00:34] aiming for ...Rc2+.} 40. Rc7+ {[%emt 0:03:14]} Kg6 {[%emt 0:00:28] White must now prevent ...Rc2+.} 41. Rc4 {[%emt 0:00:33]} Rxa2+ {[%emt 0:00:19]} 42. Kf1 {[%emt 0:00:03]} Rb2 {[%emt 0:01:31]} 43. Rc7 {[%emt 0:01:24]} Rxb3 {[%emt 0:00:33]} 44. Bf8 {[%emt 0:00:02]} Rb1+ {[%emt 0:00:34] Weighted Error Value: White=0.32/Black=0.02 (flawless) .  Loses game:     	White=1     	---        Inaccurate:     	White=1     	---        OK:         	White=10    	Black=16     Best:        	White=3     	Black=3} 0-1